Cogmind - Beta 12 @@@ ROGUE MODE // 2023.11.30 @ 22:42:57 Player: User Result: Self-destructed Performance ------------- Evolutions (3) 1500 Regions Visited (4) 800 Robots Destroyed (44) 220 Value Destroyed (1387) 1387 Prototype IDs (5) 100 Alien Tech Used (0) 0 Bonus (33) 33 TOTAL SCORE: 4040 Bonus ------- High Alert Combat Kills 33 Cogmind --------- Core Integrity 700/700 Matter 293/300 Energy 140/140 System Corruption 0% Temperature Cool (0) Movement Treading (150) Location -7/Factory Parts ------- > --- POWER (2) -------- Light Deuterium Engine > --- PROPULSION (4) --- Light Treads Advanced Treads Advanced Treads > --- UTILITY (4) ------ Heat Sink Improved Heat Sink Medium Storage Unit Hardened Medium Armor Plating > --- WEAPON (3) ------- Heavy Assault Rifle Enhanced Autogun Enhanced Autogun > --- INVENTORY (10) --- Light Nuclear Core Light Nuclear Core Light Treads Advanced Treads Improved Heat Sink Improved Heat Sink Reactive Plating Heavy EM Shotgun Ion Cannon Flak Cannon Peak State ------------ > --- POWER ------------ Light Deuterium Engine > --- PROPULSION ------- Light Treads Advanced Treads Advanced Treads > --- UTILITY ---------- Heat Sink Improved Heat Sink Medium Storage Unit Hardened Medium Armor Plating > --- WEAPON ----------- Heavy Assault Rifle Enhanced Autogun Enhanced Autogun > --- INVENTORY -------- Light Nuclear Core Light Treads Carbon-fiber Leg VSS Leg Improved Heat Sink Reactive Plating Heavy EM Shotgun Ion Cannon Flak Cannon [Rating: 30] Favorites ----------- Power Heavy Ion Engine Engine Heavy Ion Engine Power Core Light Nuclear Core Propulsion Light Treads Treads Light Treads Leg Aluminum Leg Wheel Compact Wheel Utility Heat Sink Device Heat Sink Storage Medium Storage Unit Protection Light Armor Plating Weapon Heavy Assault Rifle Energy Gun Beam Rifle Ballistic Gun Heavy Assault Rifle Build | -11 -10 -9 -8 -7 ------- Run | Jun Mat Mat Mat Fac Slots Evolved 6 | . . 2 2 2 Power 1 | . . . . 1 Propulsion 2 | . . . 1 1 Utility 2 | . . 2 . . Weapon 1 | . . . 1 . Parts Attached 36 | 3 5 12 16 . Power 4 | . 1 1 2 . Engine 3 | . 1 1 1 . Core 1 | . . . 1 . Reactor . | . . . . . Propulsion 9 | 2 . 4 3 . Treads 5 | . . 2 3 . Leg 2 | . . 2 . . Wheel 2 | 2 . . . . Hover . | . . . . . Flight . | . . . . . Utility 10 | 1 2 3 4 . Device 4 | . . 2 2 . Storage 2 | 1 1 . . . Processor . | . . . . . Hackware . | . . . . . Protection 4 | . 1 1 2 . Artifact . | . . . . . Weapon 13 | . 2 4 7 . Energy Gun 5 | . . 4 1 . Energy Cannon . | . . . . . Ballistic Gun 8 | . 2 . 6 . Ballistic Cannon . | . . . . . Launcher . | . . . . . Special Weapon . | . . . . . Impact Weapon . | . . . . . Slashing Weapon . | . . . . . Piercing Weapon . | . . . . . Special Melee Weapon . | . . . . . Unidentified Prototypes 3 | . . 1 2 . Parts Lost 12 | . . 9 3 . Power 2 | . . 1 1 . Propulsion 3 | . . 2 1 . Utility 3 | . . 2 1 . Weapon 4 | . . 4 . . Highest Loss Streak 7 | . . 7 2 . To Critical Strikes . | . . . . . Average Slot Usage (%) 87 | . 85 80 92 84 Engine 9 | . 12 10 7 7 Treads 16 | . . 11 22 23 Leg 1 | . . 4 . . Wheel 5 | . 28 5 . . Device 11 | . . 7 15 15 Storage 10 | . 14 11 9 7 Protection 8 | . 5 8 8 7 Energy Gun 7 | . . 16 3 . Ballistic Gun 17 | . 24 5 23 23 Naked Turns . | . . . . . Heaviest Build 37 | 5 22 28 37 34 Greatest Support 64 | 26 26 40 64 64 Greatest Overweight (x) 1 | . . 1 1 . Average Overweight (x) . | . . . . . Largest Inventory Capacity 10 | 8 10 10 10 10 Average Capacity 9 | 7 8 10 10 10 Most Carried 10 | 7 10 10 10 10 Average Carried 8 | 4 7 8 9 10 Final Capacity 10 | 8 10 10 10 10 Final Carried 10 | 7 10 9 10 10 Class Distribution -------------------- 50% | Scavenger-Tank 29% | Mutant 16% | Scavenger-Mutant Dominant Class ---------------- Mutant | -10/Materials Scavenger-Mutant | -9/Materials Scavenger-Tank | -8/Materials Scavenger-Tank | -7/Factory Resources | -11 -10 -9 -8 -7 ----------- Run | Jun Mat Mat Mat Fac Matter Collected 1238 | 230 53 185 770 . Remotely 73 | . . 73 . . Salvage Created 1893 | . 153 433 1307 . Parts 98 | . 7 21 70 . Haulers Intercepted 4 | . . . 4 . Recyclers Shooed 1 | . . . 1 . Parts Field Recycled . | . . . . . Retrieved Matter . | . . . . . Parts Self-Destructed . | . . . . . Prevented . | . . . . . Kills | -11 -10 -9 -8 -7 ------- Run | Jun Mat Mat Mat Fac Combat Hostiles Destroyed 32 | . 2 10 20 . Guns 32 | . 2 10 20 . Classes Destroyed 10 | . 2 2 6 . Worker 1 | . . . 1 . Hauler 4 | . . . 4 . Recycler 2 | . 1 . 1 . Operator 1 | . . . 1 . Watcher 4 | . . 1 3 . Swarmer 4 | . . . 4 . Grunt 22 | . 2 8 12 . Duelist 1 | . . . 1 . Sentry 4 | . . 2 2 . Hunter 1 | . . . 1 . Best Kill Streak 8 | . 3 6 8 . Combat Bots Only 8 | . 2 6 8 . Max Kills in Single Turn 2 | . 1 2 2 . Gunslinging 1 | . . 1 1 . Exploded . | . . . . . Melee . | . . . . . Uniques/NPCs Destroyed . | . . . . . Combat | -11 -10 -9 -8 -7 -------- Run | Jun Mat Mat Mat Fac Damage Taken 2200 | . 116 1070 1014 . Core 363 | . . 291 72 . Absorbed by Shields . | . . . . . Core Remaining (%) 78 | 100 100 27 86 . Volleys Fired 120 | . 10 33 77 . Largest 3 | . 2 2 3 . Hottest 121 | . 40 121 102 . Shots Fired 309 | . 20 58 231 . Gun 309 | . 20 58 231 . Cannon . | . . . . . Launcher . | . . . . . Special . | . . . . . Kinetic 224 | . 20 16 188 . Thermal 83 | . . 42 41 . Explosive . | . . . . . Electromagnetic 2 | . . . 2 . Robot Hit Streak 16 | . 3 16 11 . Robot Miss Streak 5 | . 2 5 5 . Penetration Max . | . . . . . Secondary Targets 6 | . 1 2 3 . Max Gunslinging Chain 1 | . 1 1 1 . Shots Hit Robots 198 | . 13 49 136 . Core Hits 88 | . 6 23 59 . Critical Kills . | . . . . . Critical Parts Destroyed 1 | . . . 1 . Critical Strikes 8 | . . 3 5 . Burn 7 | . . 3 4 . Destroy 1 | . . . 1 . Melee Attacks . | . . . . . Impact . | . . . . . Slashing . | . . . . . Piercing . | . . . . . Sneak Attacks . | . . . . . Combat Hostiles . | . . . . . Follow-up Attacks . | . . . . . Damage Inflicted 3033 | . 170 695 2168 . Guns 3011 | . 170 695 2146 . Cannons . | . . . . . Explosions 22 | . . . 22 . Melee . | . . . . . Ramming . | . . . . . Kinetic 2104 | . 170 161 1773 . Thermal 891 | . . 534 357 . Explosive . | . . . . . Electromagnetic 38 | . . . 38 . Impact . | . . . . . Slashing . | . . . . . Piercing . | . . . . . Highest Corruption . | . . . . . Average Corruption . | . . . . . Corruption Purged . | . . . . . Corruption Blocked . | . . . . . Overload Shots . | . . . . . Overflow Damage . | . . . . . Projectiles . | . . . . . Explosions . | . . . . . Melee . | . . . . . Knockbacks . | . . . . . Impact . | . . . . . Kinetic . | . . . . . Secondary . | . . . . . Self-Inflicted Damage 7 | . . . 7 . Shots 1 | . . . 1 . Rammed . | . . . . . Targets Rammed . | . . . . . Kicked . | . . . . . Crushed . | . . . . . Highest Temperature 321 | . 8 321 42 . Average Temperature 78 | . 4 143 9 . Received Heat Transfer 1005 | . 66 534 405 . Effects 1 | . . 1 . . Interference 1 | . . 1 . . Siege Activations . | . . . . . Robots Corrupted . | . . . . . Combat Hostiles . | . . . . . Parts Fried . | . . . . . Impact Corruptions . | . . . . . Robots Melted . | . . . . . Combat Hostiles . | . . . . . Parts Melted 6 | . . 4 2 . Heat Transferred 2693 | . . 1496 1197 . Parts Sabotaged . | . . . . . Parts Stolen . | . . . . . Parts Stripped . | . . . . . Power Chain Reactions 1 | . . . 1 . Missiles Intercepted . | . . . . . Alert | -11 -10 -9 -8 -7 ------- Run | Jun Mat Mat Mat Fac Peak Influence 498 | . 111 305 498 187 Initial 187 | . . 46 46 187 Average 207 | . 52 164 281 187 Maximum Alert Level 2 | . . 1 2 . Low Security (%) 47 | 100 100 63 20 100 Level 1 46 | . . 36 66 . Level 2 6 | . . . 12 . Level 3 . | . . . . . Level 4 . | . . . . . Level 5 . | . . . . . High Security . | . . . . . Max Security . | . . . . . Squads Dispatched 7 | . . 2 5 . Investigation 4 | . . 1 3 . Extermination . | . . . . . Reinforcement 3 | . . 1 2 . Assault . | . . . . . Garrison . | . . . . . Intercept . | . . . . . Searches Triggered . | . . . . . Construction Impeded . | . . . . . Haulers Reinforced . | . . . . . Active Scanning Responses . | . . . . . Cargo Convoy Interrupts . | . . . . . Stealth | -11 -10 -9 -8 -7 --------- Run | Jun Mat Mat Mat Fac Distress Signals 3 | . . 1 2 . Communications Jammed . | . . . . . Distress Signals . | . . . . . Times Spotted 56 | . 5 16 33 2 Peak Tracking Total 10 | . 3 10 7 2 Tactical Retreats 3 | . . 2 1 . Traps | -11 -10 -9 -8 -7 ------- Run | Jun Mat Mat Mat Fac Traps Triggered . | . . . . . Indirectly . | . . . . . Trap Hack Attempts . | . . . . . Triggered . | . . . . . Disarmed . | . . . . . Reprogrammed . | . . . . . Reused . | . . . . . Traps Extracted . | . . . . . Installed . | . . . . . Triggered . | . . . . . Machines | -11 -10 -9 -8 -7 ---------- Run | Jun Mat Mat Mat Fac Machines Disabled 2 | . . . 2 . Max in Single Turn 1 | . . . 1 . Garrison Access 1 | . . . 1 . Machines Repaired . | . . . . . Machines Sabotaged . | . . . . . Overloaded Fab Kills . | . . . . . Hacking | -11 -10 -9 -8 -7 --------- Run | Jun Mat Mat Mat Fac Machines Accessed 12 | . 3 5 4 . Terminals 10 | . 3 5 2 . Fabricators . | . . . . . Repair Stations . | . . . . . Recycling Units . | . . . . . Scanalyzers 1 | . . . 1 . Garrison Access 1 | . . . 1 . Total Hacks 48 | . 9 19 20 . Successful 24 | . 3 8 13 . Failed 24 | . 6 11 7 . Catastrophic 6 | . . 3 3 . Database Lockouts . | . . . . . Manual 25 | . 5 11 9 . Terminals 35 | . 9 19 7 . Fabricators . | . . . . . Repair Stations . | . . . . . Recycling Units . | . . . . . Scanalyzers 11 | . . . 11 . Garrison Access 2 | . . . 2 . Terminal Hacks 7 | . 1 5 1 . Prototype ID Bank 1 | . . 1 . . Branch Access Points 2 | . . 1 1 . Emergency Access Points 2 | . . 2 . . Locate Traps 1 | . 1 . . . Registered Components 1 | . . 1 . . Fabricator Hacks . | . . . . . Repair Station Hacks . | . . . . . Recycling Unit Hacks . | . . . . . Scanalyzer 8 | . . . 8 . Insert Component 4 | . . . 4 . Analyze 4 | . . . 4 . Garrison Access Hacks 1 | . . . 1 . Seal Access 1 | . . . 1 . Unauthorized Hacks 8 | . 2 3 3 . Terminals 7 | . 2 3 2 . Botnet 6 | . 1 3 2 . Operators 1 | . 1 . . . Fabricators . | . . . . . Repair Stations . | . . . . . Recycling Units . | . . . . . Scanalyzers 1 | . . . 1 . Researchers 1 | . . . 1 . Garrison Access . | . . . . . Data Cores Recovered 1 | . . . 1 . Used . | . . . . . Hacking Detections 12 | . 3 5 4 . Full Trace Events 7 | . . 4 3 . Feedback Events . | . . . . . Feedback Blocked . | . . . . . Robot Schematics Acquired . | . . . . . Robots Built . | . . . . . Authchips . | . . . . . Time . | . . . . . Total Robot Build Rating . | . . . . . Part Schematics Acquired 4 | . . . 4 . Parts Built . | . . . . . Authchips . | . . . . . Time . | . . . . . Total Part Build Rating . | . . . . . Parts Repaired . | . . . . . Time . | . . . . . Parts Recycled . | . . . . . Recycled Matter . | . . . . . Retrieved Matter . | . . . . . Retrieved Components . | . . . . . Parts Scanalyzed 4 | . . . 4 . Part Schematics Acquired 4 | . . . 4 . Parts Damaged . | . . . . . Bothacking | -11 -10 -9 -8 -7 ------------ Run | Jun Mat Mat Mat Fac Used RIF Installer . | . . . . . Robots Hacked . | . . . . . Non-combat . | . . . . . Combat . | . . . . . Robot Hacks Applied . | . . . . . Relay Couplers Released . | . . . . . Fabnet Peak Effective % . | . . . . . Robots Rewired . | . . . . . Allies Hacked . | . . . . . Hacks Repelled . | . . . . . Allies | -11 -10 -9 -8 -7 -------- Run | Jun Mat Mat Mat Fac Total Allies . | . . . . . Largest Group . | . . . . . Highest-Rated Group . | . . . . . Highest-Rated Ally . | . . . . . Total Orders . | . . . . . Ally Attacks . | . . . . . Total Damage . | . . . . . Kills . | . . . . . Allies Corrupted . | . . . . . Allies Melted . | . . . . . Intel | -11 -10 -9 -8 -7 ------- Run | Jun Mat Mat Mat Fac Robot Analysis Total . | . . . . . Derelict Logs Recovered . | . . . . . Drone Launches . | . . . . . Drone Recoveries . | . . . . . Exploration | -11 -10 -9 -8 -7 ------------- Run | Jun Mat Mat Mat Fac Turns Passed 1900 | 75 214 582 996 33 Spaces Moved 1057 | 57 181 337 460 22 Core 16 | 16 . . . . Treads 658 | . . 176 460 22 Legs 36 | . . 36 . . Wheels 347 | 41 181 125 . . Hover . | . . . . . Flight . | . . . . . Fastest Speed 50 | 50 90 90 150 150 Average Speed 134 | 80 90 137 155 150 Slowest Speed 240 | 100 90 190 240 150 Overloaded Moves . | . . . . . Propulsion Burnouts . | . . . . . Robots Hopped . | . . . . . Cave-ins Triggered . | . . . . . Exploration Rate (%) 26 | 4 48 31 46 2 Regions Visited 4 Branch Regions . Pre-discovered Areas . | . . . . . Known Exits Taken . | . . . . . Unknown Exits Taken 4 | 1 1 1 1 . Scrap Searched . | . . . . . Spaces Dug . | . . . . . Terrain Destroyed 2 | . . . 2 . Melee . | . . . . . Projectile . | . . . . . AOE 2 | . . . 2 . Terrain Rammed . | . . . . . Walls Destroyed . | . . . . . Machines Disabled . | . . . . . Actions | -11 -10 -9 -8 -7 --------- Run | Jun Mat Mat Mat Fac Total 1331 | 86 216 398 609 22 Wait 29 | 17 2 8 2 . Move 1053 | 56 180 336 459 22 Hop . | . . . . . Pick Up 63 | 10 13 9 31 . Fast Attach . | . . . . . Attach 24 | 3 4 10 7 . Detach . | . . . . . Swap 12 | . 1 2 9 . Drop 30 | . 6 . 24 . Fire 120 | . 10 33 77 . Melee . | . . . . . Ram . | . . . . . Kick . | . . . . . Crush . | . . . . . Escape Stasis . | . . . . . Rewire . | . . . . . Trap . | . . . . . Miscellaneous . | . . . . . Route ------- -11/Junkyard -10/Materials (discovered 2 exits: *Mat / [*Min]) -9/Materials (discovered 2 exits: *Mat / Min) -8/Materials -7/Factory History --------- Turn | Location | Event 7 | -11/Junkyard | Discovered new exit (range 15) 76 | -11/Junkyard | Entered Materials 118 | -10/Materials | Discovered new exit (range 13) 262 | -10/Materials | Discovered new exit (range 14) 290 | -10/Materials | Entered another Materials area 290 | -9/Materials | Evolved 2 slots: Utility x2 311 | -9/Materials | Build established: Mutant 483 | -9/Materials | Lost 7 parts (1p2n2u2w) 483 | -9/Materials | Core integrity fell below 50% 667 | -9/Materials | Discovered new exit (range 12) 781 | -9/Materials | Identified exit to Mines 864 | -9/Materials | Build established: Scavenger-Mutant 872 | -9/Materials | Entered another Materials area 872 | -8/Materials | Evolved 2 slots: Propulsion x1, Weapon x1 1081 | -8/Materials | Destroyed 8 combat bots 1406 | -8/Materials | Build established: Scavenger-Tank 1676 | -8/Materials | Discovered new exit (range 6) 1868 | -8/Materials | Entered Factory 1868 | -7/Factory | Evolved 2 slots: Power x1, Propulsion x1 1901 | -7/Factory | Self-destructed Last Messages --------------- 01807_ Connecting with Terminal... >>Trojan(Botnet) Trojan loaded successfully. Testing... Terminal linked with 1 system. Awaiting botnet instructions. >>Access(Branch) No branch access points found. 01807_ ALERT: Suspicious activity at Terminal M003. Dispatching Investigation squad. 01822_ G-47 Trooper destroyed. 01822_ Switching to secondary target: G-47 Trooper. 01829_ G-47 Trooper destroyed. 01845_ Acquired 56 matter. 01848_ Acquired Imp. Heat Sink. 01852_ Acquired 52 matter. PARAMETERS=POWER+1,PROPULSION+1 LOCATION=UNKNOWN GOAL=ESCAPE 01900_ ALERT: All DSF locations entering lockdown mode. Map ----- +----------------------------------------------------+ | ?????????????????????????????????????????????????? | | ?????????????????????????????????????????????????? | | ?????????????????????????????????????????????????? | | ?????????????????????????????????????????????????? | | ?????????????????????????????????????????????????? | | ?????????????????????????????????????????????????? | | ?????????????????????????????????????????????????? | | ?????????????????????????????????????????????????? | | ?????????????????????????????????????????????????? | | ?????????????????????????????????????????????????? | | ????????????????????????? ?????????????????????? | | ????????????????????????? ???????????????????? | | ????????????????????????? #??????????????????? | | ????????????????????????? #??????????????????? | | ????????????????????????? #??????????????????? | | ???????????????########## a #??????????????????? | | ???????????????# # g #??????????????????? | | ???????????????# # g #????#?????????????? | | ???????????????# # #### ####??????????? | | ???????????????# # ??????????? | | ???????????????# # ??????????? | | ???????????????# # ?????????? | | ???????????????# # ????????????? | | ???????????????# # ???????????????? | | ????????????????? ??# #??????????????????? | | ??????????#########+#####@ #??????????????????? | | ??????????# #??????????????????? | | ??????????# #??????????????????? | | ??????????# #??????????????????? | | ??????????# #??????????????????? | | ########??# #??????????????????? | | ??# ###############??????????????????? | | ?# ##???????????????????????????????? | | ?# T#???????????????????????????????? | | # #???????????????????????????????? | | # ##???????????????????????????????? | | + #????????????????????????????????? | | # #????????????????????????????????? | | # #????????????????????????????????? | | ?# #????????????????????????????????? | | ?#######????????????????????????????????? | | ?????????????????????????????????????????? | | ?????????????????????????????????????????? | | #######??????????????????????????????????????????? | | ?????????????????????????????????????????????????? | | ?????????????????????????????????????????????????? | | ?????????????????????????????????????????????????? | | ?????????????????????????????????????????????????? | | ?????????????????????????????????????????????????? | | ?????????????????????????????????????????????????? | +----------------------------------------------------+ Best States ------------- Heat Dissipation 58 Energy Generation 14 Energy Capacity 280 Matter Stores 300 Matter Capacity 300 Sight Range 16 Terrain Scan Density 10 Armor Coverage 225 Evasion (%) 50 Recoil Reduction 3 Item Schematics ----------------- Flak Cannon | -8/Materials | Scanalyzed Heat Sink | -8/Materials | Scanalyzed Lgt. Nuclear Core | -8/Materials | Scanalyzed Med. Armor Plating | -8/Materials | Scanalyzed Robot Schematics ------------------ None Fabricated ------------ Nothing Alien Tech Used ----------------- None Achievements -------------- None Challenges ------------ None Game ------ Seed GatlingRagnarokRegenerator Manual? 0 Play Time 00:19:10 Cumulative 179.4 hours Start 2023.11.30 @ 22:24:05 End 2023.11.30 @ 22:42:57 Sessions 1 Manual Loads 0 Difficulty Rogue Special Mode None Game No. 155 Rogue 90 Adventurer 65 Explorer 0 Win Type - Total 14 Types 10/1/0/3/0/0/0/0/0 Lore% 73 Gallery% 81 Achievement% 69 Wizard Run 0 Options --------- ASCII 0 Keyboard 0 Movement Mouse Keybinds 0 Fullscreen 2 Font 20/Terminus Map View 66x50 Tactical HUD 1 Map Filters NONE Filters NONE Steam 1 RUN: 9e1cc986-ebd6-48c3-a029-a2311fc418bf